{"text_format":"1","workbook":"xlsx","n_sheets":8,"sheets":["Information","Main","Energy","Waste","Outreach","Water","Transportation","Innovation"],"not_rendered":{"charts":0,"images":1,"macros":1,"external_links":0,"defined_names":1,"comments":0,"pivot_tables":0},"unopened":[],"bounds":{"document_bytes":16777216,"sheet_cells":100000,"rows_first":2000,"rows_last":500,"rows_between":2000,"halvings":0,"cell_chars":16384,"cell_head_chars":4096},"cells_cut":0,"cells_raw":0,"read":"whole","date_system":"1900"}

{"sheet":"Information","index":0,"n_rows":21,"n_cols":5,"rows_kept":21,"cut":false,"hidden":false,"merged":[[12,6,12,14],[20,4,20,5],[14,6,14,14],[16,6,16,14],[18,6,18,14],[20,6,20,14]]}
[]
[]
[]
[]
[]
[]
[]
[]
[]
[]
[]
[]
[null,null,null,null,"Name:"]
[]
[null,null,null,null,"Phone number:"]
[]
[null,null,null,null,"Email Adress:"]
[]
[null,null,null,null,"Office:"]
[]
[null,null,null,null,"Office Champion:"]

{"sheet":"Main","index":1,"n_rows":26,"n_cols":15,"rows_kept":26,"cut":false,"hidden":false,"merged":[[14,14,14,15],[21,6,24,6],[25,13,25,15],[12,3,12,11],[13,3,13,11],[14,3,14,11],[15,3,15,11],[16,3,16,11],[17,3,17,11],[16,14,16,15],[17,14,17,15],[21,12,21,13],[12,12,12,13],[13,12,13,13],[14,12,14,13],[15,12,15,13],[11,12,11,13],[11,3,11,11],[11,14,11,15],[12,14,12,15],[13,14,13,15],[1,2,2,16],[3,2,3,16],[6,3,6,15],[10,3,10,11],[10,12,10,13],[10,14,10,15],[15,14,15,15],[17,12,17,13],[21,14,21,15],[21,9,21,11],[25,9,25,12],[16,12,16,13]]}
[]
[]
[]
[]
[]
[]
[null,null,null,"Welcome to Work Green at the University of Saskatchewan! This checklist will help you calculate how many points you have earned and the level of certification you will receive. Click on the Work Green categories on the worksheet tabs below to begin completing the checklist. Your total points will be calculated on this main page. Congratulations on your sustainability leadership!"]
[]
[]
[]
[null,null,null,"Work Green Categories",null,null,null,null,null,null,null,null,"Possible Points",null,"Points Earned"]
[null,null,null,"Energy",null,null,null,null,null,null,null,null,{"$f":"Energy!AL17","v":11},null,{"$f":"Energy!AK16","v":0}]
[null,null,null,"Waste: Reduce, Reuse, and Recycle",null,null,null,null,null,null,null,null,{"$f":"Waste!AL13","v":14},null,{"$f":"Waste!AK12","v":0}]
[null,null,null,"Outreach",null,null,null,null,null,null,null,null,{"$f":"Outreach!AL11","v":9},null,{"$f":"Outreach!AK10","v":0}]
[null,null,null,"Transportation",null,null,null,null,null,null,null,null,{"$f":"Transportation!E13*1","v":0},null,{"$f":"Transportation!AP12","v":0}]
[null,null,null,"Water",null,null,null,null,null,null,null,null,{"$f":"Water!AZ10","v":5},null,{"$f":"Water!AY9","v":0}]
[null,null,null,"Innovation",null,null,null,null,null,null,null,null,{"$f":"Innovation!AL10","v":0},null,{"$f":"Innovation!AK9","v":0}]
[]
[]
[]
[]
[null,null,null,null,null,null,{"$f":"(O22/M22)","v":0},null,null,"Total",null,null,{"$f":"SUM(M12:N21)","v":39},null,{"$f":"SUM(O12:P21)","v":0}]
[]
[]
[]
[null,null,null,null,null,null,null,null,null,"Level of Certification:",null,null,null,{"$f":"IF((O22/M22)*100>=81,\"Gold\", IF((O22/M22)*100>=60,\"Silver\",IF((O22/M22)*100>=40, \"Bronze\",\"WG Member\")))","v":"WG Member"}]

{"sheet":"Energy","index":2,"n_rows":28,"n_cols":38,"rows_kept":28,"cut":false,"hidden":false,"merged":[[14,3,14,17],[46,3,46,17],[30,3,30,17],[32,3,32,17],[34,3,34,17],[36,3,36,17],[38,3,38,17],[40,3,40,17],[42,3,42,17],[27,9,27,11]]}
[]
[]
[]
[]
[null,null,null,null,null,null,null,null,null,null,null,null,null,null,null,null,null,null,null,null,null,null,null,null,null,null,null,null,null,null,null,null,"Croll Down Values",null,"Behaviour","Code","Yes","N/A"]
[null,null,null,null,null,null,null,null,null,null,null,null,null,null,null,null,null,null,null,null,null,null,null,null,null,null,null,null,null,null,null,null,"Yes",null,"One",{"$f":"IF(E8=0,\"\",IF((E9/E8)*100=100,3,IF((E9/E8)*100>=66,2,IF((E9/E8)*100>=1,1,0))))","v":""},{"$f":"AJ6","v":""},{"$f":"IF(E8=0,3,0)","v":3}]
[null,null,null,null,"I use compact fluorescent or LED bulbs in all floor and desk lamps",null,null,null,null,null,null,null,null,null,null,null,null,null,null,null,null,null,null,null,null,null,null,null,null,null,null,null,"No",null,"Two",3,{"$f":"IF((AJ7)=1,3,IF((AJ7)=2,0,0))","v":0}]
[null,null,null,null,0,"Number of desk lamps",null,null,null,null,null,null,null,null,null,null,null,null,null,null,null,null,null,null,null,null,null,null,null,null,null,null,"N/A",null,"Three",2,{"$f":"IF(AJ8=1,1,0)","v":0},{"$f":"IF(AJ8=3,1,0)","v":0}]
[null,null,null,null,0,"Number of desk lamps with LED/fluorescent bulbs",null,null,null,null,null,null,null,null,null,null,null,null,null,null,null,null,null,null,null,null,null,null,null,null,null,null,null,null,"Four",2,{"$f":"IF(AJ9=1,2,0)","v":0},{"$f":"IF(AJ9=3,2,0)","v":0}]
[null,null,null,null,null,null,null,null,null,null,null,null,null,null,null,null,null,null,null,null,null,null,null,null,null,null,null,null,null,null,null,null,"None",null,"Five",2,{"$f":"IF(AJ10=1,2,0)","v":0},{"$f":"IF(AJ10=3,2,0)","v":0}]
[null,null,null,null,null,"I have personal appliances in my work space (e.g., space heaters, coffee machines, kettles, etc.).",null,null,null,null,null,null,null,null,null,null,null,null,null,null,null,null,null,null,null,null,null,null,null,null,null,null,"Yes",null,"Six",2,{"$f":"IF(AJ11=1,3,0)","v":0},{"$f":"IF(AJ11=3,3,0)","v":0}]
[null,null,null,null,null,null,null,null,null,null,null,null,null,null,null,null,null,null,null,null,null,null,null,null,null,null,null,null,null,null,null,null,"N/A",null,"Seven",2,{"$f":"IF(AJ12=1,3,0)","v":0},{"$f":"IF(AJ12=3,3,0)","v":0}]
[]
[]
[null,null,null,null,null,null,null,null,null,null,null,null,null,null,null,null,null,null,null,null,null,null,null,null,null,null,null,null,null,null,null,null,null,null,null,null,null,{"$f":"IF(AJ7=3,3,0)","v":3}]
[null,null,null,null,null,"I shut down my computer when leaving for the day or turn off my monitor if the computer has to stay on.",null,null,null,null,null,null,null,null,null,null,null,null,null,null,null,null,null,null,null,null,null,null,null,null,null,null,null,null,null,"Totals",{"$f":"SUM(AK6:AK15)","v":0},{"$f":"SUM(AL6:AL15)","v":6}]
[null,null,null,null,null,null,null,null,null,null,null,null,null,null,null,null,null,null,null,null,null,null,null,null,null,null,null,null,null,null,null,null,null,null,null,"Available",null,{"$f":"(17-AL16)","v":11}]
[null,null,null,null,null,"I choose computer power management settings that minimize power consumption."]
[]
[null,null,null,null,null,"During weekends, holidays or breaks, I commit to follow the Work Green energy conservation checklist."]
[]
[null,null,null,null,null,"I plug multiple devices into a power strip/bar that I turn off when the devices are not in use."]
[]
[null,null,null,null,null,"I unplug chargers when they are not charging a device."]
[]
[]
[]
[null,null,null,null,null,null,null,null,null,"Total points earned",null,null,{"$f":"AK16","v":0}]

{"sheet":"Waste","index":3,"n_rows":22,"n_cols":38,"rows_kept":22,"cut":false,"hidden":false,"merged":[[71,3,71,17],[73,3,73,17],[53,3,53,17],[55,3,55,17],[57,3,57,17],[59,3,59,17],[61,3,61,17],[63,3,63,17],[65,3,65,17],[21,8,21,10],[67,3,67,17],[69,3,69,17],[33,3,33,17],[35,3,35,17],[37,3,37,17],[39,3,39,17],[25,3,25,17],[41,3,41,17],[43,3,43,17],[45,3,45,17],[47,3,47,17],[49,3,49,17],[51,3,51,17]]}
[]
[]
[]
[]
[null,null,null,null,null,null,null,null,null,null,null,null,null,null,null,null,null,null,null,null,null,null,null,null,null,null,null,null,null,null,null,null,"Option",null,"Behaviour","Code","Yes","N/A"]
[null,null,null,null,null,null,null,null,null,null,null,null,null,null,null,null,null,null,null,null,null,null,null,null,null,null,null,null,null,null,null,null,"Yes",null,1,2,{"$f":"IF(AJ6=1,1,0)","v":0},{"$f":"IF(AJ6=3,1,0)","v":0}]
[null,null,null,null,null,"My work space (office or cubicle) has a single-stream recycling bin.",null,null,null,null,null,null,null,null,null,null,null,null,null,null,null,null,null,null,null,null,null,null,null,null,null,null,"No",null,2,2,{"$f":"IF(AJ7=1,2,0)","v":0},{"$f":"IF(AJ7=3,2,0)","v":0}]
[null,null,null,null,null,null,null,null,null,null,null,null,null,null,null,null,null,null,null,null,null,null,null,null,null,null,null,null,null,null,null,null,"N/A",null,3,2,{"$f":"IF(AJ8=1,2,0)","v":0},{"$f":"IF(AJ8=3,2,0)","v":0}]
[null,null,null,null,null,"When I bring food and beverages to campus, I bring them in reusable containers.",null,null,null,null,null,null,null,null,null,null,null,null,null,null,null,null,null,null,null,null,null,null,null,null,null,null,null,null,4,2,{"$f":"IF(AJ9=1,3,0)","v":0},{"$f":"IF(AJ9=3,3,0)","v":0}]
[null,null,null,null,null,null,null,null,null,null,null,null,null,null,null,null,null,null,null,null,null,null,null,null,null,null,null,null,null,null,null,null,null,null,5,2,{"$f":"IF(AJ10=1,3,0)","v":0},{"$f":"IF(AJ10=3,3,0)","v":0}]
[null,null,null,null,null,"I use rechargeable batteries at work instead of single-use ones.",null,null,null,null,null,null,null,null,null,null,null,null,null,null,null,null,null,null,null,null,null,null,null,null,null,null,null,null,6,2,{"$f":"IF(AJ11=1,3,0)","v":0},{"$f":"IF(AJ11=3,3,0)","v":0}]
[null,null,null,null,null,null,null,null,null,null,null,null,null,null,null,null,null,null,null,null,null,null,null,null,null,null,null,null,null,null,null,null,null,null,"Total",null,{"$f":"SUM(AK6:AK11)","v":0},{"$f":"SUM(AL6:AL11)","v":0}]
[null,null,null,null,null,"I commit to have a cup or/and coffee mug at work in for when I buy coffee or tea on campus.",null,null,null,null,null,null,null,null,null,null,null,null,null,null,null,null,null,null,null,null,null,null,null,null,null,null,null,null,"Available",null,null,{"$f":"(14-AL12)","v":14}]
[]
[null,null,null,null,null,"For printed documents, I commit to reducing margins and font size to decrease the document length."]
[]
[null,null,null,null,null,"I copy/print on both sides of the page."]
[]
[]
[]
[]
[null,null,null,null,null,null,null,null,"Total points earned",null,null,{"$f":"AK12","v":0}]

{"sheet":"Outreach","index":4,"n_rows":21,"n_cols":38,"rows_kept":21,"cut":false,"hidden":false,"merged":[[7,16,7,17],[7,3,7,14],[14,5,14,18],[21,3,21,17],[29,3,29,17],[8,3,8,17],[11,3,11,16],[17,3,17,16],[19,3,19,16]]}
[]
[]
[]
[]
[null,null,null,null,null,null,null,null,null,null,null,null,null,null,null,null,null,null,null,null,null,null,null,null,null,null,null,null,null,null,null,null,"Option",null,"Behaviour","Code","Yes","N/A"]
[null,null,null,null,null,null,null,null,null,null,null,null,null,null,null,null,null,null,null,null,null,null,null,null,null,null,null,null,null,null,null,null,"Yes",null,1,null,{"$f":"IF(Q8=0,0,1)","v":0}]
[null,null,null,null,null,null,null,null,null,null,null,null,null,null,null,null,null,null,null,null,null,null,null,null,null,null,null,null,null,null,null,null,"No",null,2,2,{"$f":"IF(AJ7=1,2,0)","v":0},{"$f":"IF(AJ7=3,2,0)","v":0}]
[null,null,null,"Number of people from different U of S workplaces I have talked to about the Work Green Program:",null,null,null,null,null,null,null,null,null,null,null,null,0,null,null,null,null,null,null,null,null,null,null,null,null,null,null,null,"N/A",null,3,2,{"$f":"IF(AJ8=1,3,0)","v":0},{"$f":"IF(AJ8=3,3,0)","v":0}]
[null,null,null,null,null,null,null,null,null,null,null,null,null,null,null,null,null,null,null,null,null,null,null,null,null,null,null,null,null,null,null,null,null,null,4,2,{"$f":"IF(AJ9=1,3,0)","v":0},{"$f":"IF(AJ9=3,3,0)","v":0}]
[null,null,null,null,null,null,null,null,null,null,null,null,null,null,null,null,null,null,null,null,null,null,null,null,null,null,null,null,null,null,null,null,null,null,"Total",null,{"$f":"SUM(AK6:AK9)","v":0},{"$f":"SUM(AL6:AL9)","v":0}]
[null,null,null,null,null,null,null,null,null,null,null,null,null,null,null,null,null,null,null,null,null,null,null,null,null,null,null,null,null,null,null,null,null,null,"Available",null,null,{"$f":"(9-AL10)","v":9}]
[]
[null,null,null,null,null,"I have liked the Office of Sustainability Facebook page or follow it on Twitter."]
[]
[null,null,null,null,null,"I have shared, commented on, tweeted, liked, etc. the Office of Sustainability's social media posts."]
[]
[null,null,null,null,null,"I talk to other people at work, at home or in the community about the green practices I do. "]
[]
[]
[]
[null,null,null,null,null,null,null,null,null,"Total points earned",null,null,{"$f":"AK10","v":0}]

{"sheet":"Water","index":5,"n_rows":14,"n_cols":52,"rows_kept":14,"cut":false,"hidden":false,"merged":[[19,17,19,18],[19,1,19,14],[15,3,15,17],[6,5,6,18]]}
[]
[]
[]
[null,null,null,null,null,null,null,null,null,null,null,null,null,null,null,null,null,null,null,null,null,null,null,null,null,null,null,null,null,null,null,null,null,null,null,null,null,null,null,null,null,null,null,null,null,null,"Option",null,"Behaviour","Code","Yes","N/A"]
[null,null,null,null,null,null,null,null,null,null,null,null,null,null,null,null,null,null,null,null,null,null,null,null,null,null,null,null,null,null,null,null,null,null,null,null,null,null,null,null,null,null,null,null,null,null,"Yes",null,1,2,{"$f":"IF(AX5=1,2,0)","v":0},{"$f":"IF(AX5=3,2,0)","v":0}]
[null,null,null,null,null,null,null,null,null,null,null,null,null,null,null,null,null,null,null,null,null,null,null,null,null,null,null,null,null,null,null,null,null,null,null,null,null,null,null,null,null,null,null,null,null,null,"No",null,2,2,{"$f":"IF(AX6=1,3,0)","v":0},{"$f":"IF(AX6=3,3,0)","v":0}]
[null,null,null,null,null,"Whenever I see a leaky faucet or a toilet that runs for too long, I report it at the Work Control Centre at 966-4496 or workcontrol.centre@usask.ca.",null,null,null,null,null,null,null,null,null,null,null,null,null,null,null,null,null,null,null,null,null,null,null,null,null,null,null,null,null,null,null,null,null,null,null,null,null,null,null,null,"N/A"]
[null,null,null,null,null,null,null,null,null,null,null,null,null,null,null,null,null,null,null,null,null,null,null,null,null,null,null,null,null,null,null,null,null,null,null,null,null,null,null,null,null,null,null,null,null,null,null,null,null,null,null,{"$f":"IF(AX8=3,3,0)","v":0}]
[null,null,null,null,null,"I commit to using a reusable water bottled at work instead of buying bottled water.                                                                                                                                                                       ",null,null,null,null,null,null,null,null,null,null,null,null,null,null,null,null,null,null,null,null,null,null,null,null,null,null,null,null,null,null,null,null,null,null,null,null,null,null,null,null,null,null,"Total",null,{"$f":"SUM(AY5:AY8)","v":0},{"$f":"SUM(AZ5:AZ8)","v":0}]
[null,null,null,null,null,null,null,null,null,null,null,null,null,null,null,null,null,null,null,null,null,null,null,null,null,null,null,null,null,null,null,null,null,null,null,null,null,null,null,null,null,null,null,null,null,null,null,null,"Available",null,null,{"$f":"(5-AZ9)","v":5}]
[]
[]
[]
[null,null,null,null,null,null,null,null,null,"Total points earned",null,null,{"$f":"AY9","v":0}]

{"sheet":"Transportation","index":6,"n_rows":22,"n_cols":46,"rows_kept":22,"cut":false,"hidden":false,"merged":[[26,3,26,17],[8,3,8,17],[12,17,12,18],[10,4,10,5],[12,4,12,5],[12,7,12,8],[12,9,12,10],[12,11,12,12],[12,13,12,14],[12,15,12,16],[19,9,19,11],[21,9,22,12],[7,7,7,17],[10,7,10,8],[10,9,10,10],[10,11,10,12],[10,13,10,14],[10,15,10,16],[10,17,10,18]]}
[]
[]
[]
[]
[null,null,null,null,null,null,null,null,null,null,null,null,null,null,null,null,null,null,null,null,null,null,null,null,null,null,null,null,null,null,null,null,null,null,null,null,null,null,null,null,"Behaviour","Code","Yes","N/A",null,"Total Number of days"]
[null,null,null,null,null,null,null,null,null,null,null,null,null,null,null,null,null,null,null,null,null,null,null,null,null,null,null,null,null,null,null,null,null,null,null,null,null,null,null,null,"Walk",{"$f":"R13*1","v":0},null,null,null,{"$f":"(H13+J13+L13+N13+P13+R13)","v":0}]
[null,null,null,null,null,null,null,null,null,null,null,null,null,null,null,null,null,null,null,null,null,null,null,null,null,null,null,null,null,null,null,null,null,null,null,null,null,null,null,null,"Biking/Roll",{"$f":"H13*1","v":0}]
[null,null,null,null,null,null,null,"# of days per week that I commute using these transportation options",null,null,null,null,null,null,null,null,null,null,null,null,null,null,null,null,null,null,null,null,null,null,null,null,null,null,null,null,null,null,null,null,"Driving",{"$f":"J13*0","v":0},null,{"$f":"IF(AP8=3,2,0)","v":0}]
[null,null,null,null,null,null,null,null,null,null,null,null,null,null,null,null,null,null,null,null,null,null,null,null,null,null,null,null,null,null,null,null,null,null,null,null,null,null,null,null,"Buss",{"$f":"L13*1","v":0}]
[null,null,null,null,null,null,null,null,null,null,null,null,null,null,null,null,null,null,null,null,null,null,null,null,null,null,null,null,null,null,null,null,null,null,null,null,null,null,null,null,"Telecommute",{"$f":"N13*1","v":0}]
[null,null,null,null,"Number of days I work per week",null,null,"Biking / Roll",null,"Driving",null,"Buss",null,"Telecommute",null,"Carpooling",null,"Walk",null,null,null,null,null,null,null,null,null,null,null,null,null,null,null,null,null,null,null,null,null,null,"Carpooling",{"$f":"P13*1","v":0}]
[null,null,null,null,null,null,null,null,null,null,null,null,null,null,null,null,null,null,null,null,null,null,null,null,null,null,null,null,null,null,null,null,null,null,null,null,null,null,null,null,null,{"$f":"(AP6+AP7+AP8+AP9+AP10+AP11)","v":0}]
[null,null,null,null,0,null,null,0,null,0,null,0,null,0,null,0,null,0,null,null,null,null,null,null,null,null,null,null,null,null,null,null,null,null,null,null,null,null,null,null,"Totals",{"$f":"IF((AT6)>(E13), \"Error!\",AP12)","v":0},{"$f":"SUM(AQ6:AQ12)","v":0},{"$f":"SUM(AR6:AR12)","v":0}]
[null,null,null,null,null,null,null,null,null,null,null,null,null,null,null,null,null,null,null,null,null,null,null,null,null,null,null,null,null,null,null,null,null,null,null,null,null,null,null,null,"Available",null,null,{"$f":"(7-AR13)","v":7}]
[]
[]
[]
[]
[]
[null,null,null,null,null,null,null,null,null,"Total points earned",null,null,{"$f":"(AP13)","v":0}]
[]
[null,null,null,null,null,null,null,null,null,{"$f":"IF((AT6)>(E13), \"ERROR: The total number of days traveled must be less or equal to the number of days worked.\",\"\")","v":""}]

{"sheet":"Innovation","index":7,"n_rows":112,"n_cols":59,"rows_kept":112,"cut":false,"hidden":false,"merged":[[7,5,7,17],[9,5,9,17],[11,5,11,17]]}
[]
[]
[]
[]
[null,null,null,null,null,null,null,null,null,null,null,null,null,null,null,null,null,null,null,null,null,null,null,null,null,null,null,null,null,null,null,null,"Option",null,"Question","Code","Yes","N/A"]
[null,null,null,null,null,null,null,null,null,null,null,null,null,null,null,null,null,null,null,null,null,null,null,null,null,null,null,null,null,null,null,null,"Yes",null,1,2,{"$f":"IF(AJ6=1,3,0)","v":0},{"$f":"IF(AJ6=2,3,0)","v":3}]
[null,null,null,null,null,null,null,null,null,null,null,null,null,null,null,null,null,null,null,null,null,null,null,null,null,null,null,null,null,null,null,null,"N/A",null,2,2,{"$f":"IF(AJ7=1,3,0)","v":0},{"$f":"IF(AJ7=2,3,0)","v":3}]
[null,null,null,null,null,"Describe your sustainability practice here.",null,null,null,null,null,null,null,null,null,null,null,null,null,null,null,null,null,null,null,null,null,null,null,null,null,null,null,null,3,2,0,3]
[null,null,null,null,null,null,null,null,null,null,null,null,null,null,null,null,null,null,null,null,null,null,null,null,null,null,null,null,null,null,null,null,null,null,"Totals",null,{"$f":"SUM(AK6:AK8)","v":0},{"$f":"SUM(AL6:AL8)","v":9}]
[null,null,null,null,null,"Describe your sustainability practice here.",null,null,null,null,null,null,null,null,null,null,null,null,null,null,null,null,null,null,null,null,null,null,null,null,null,null,null,null,"Available",null,null,{"$f":"(9-AL9)","v":0}]
[]
[null,null,null,null,null,"Describe your sustainability practice here."]
[]
[]
[]
[]
[null,null,null,null,null,null,null,null,null,"Total points earned",null,null,{"$f":"AK9","v":0}]
[]
[]
[]
[]
[]
[]
[]
[]
[]
[]
[]
[]
[]
[]
[]
[]
[]
[]
[]
[]
[]
[]
[]
[]
[]
[]
[]
[]
[]
[]
[]
[]
[]
[]
[]
[]
[]
[]
[]
[]
[]
[]
[]
[]
[]
[]
[]
[]
[]
[]
[]
[]
[]
[]
[]
[]
[]
[]
[]
[]
[]
[]
[]
[]
[]
[]
[]
[]
[]
[]
[]
[]
[]
[]
[]
[]
[]
[]
[]
[]
[]
[]
[]
[]
[]
[]
[]
[]
[]
[]
[]
[]
[]
[]
[null,null,null,null,null,null,null,null,null,null,null,null,null,null,null,null,null,null,null,null,null,null,null,null,null,null,null,null,null,null,null,null,null,null,null,null,null,null,null,null,null,null,null,null,null,null,null,null,null,null,null,null,null,null,null,null,null,null,1]